Cogmind - Beta 10.2 @@@ ROGUE MODE // 2021.01.10 @ 15:02:49 Player: CrossedViper Result: Destroyed by H-66 Slayer with Gauss Rifle Performance ------------- Evolutions (3) 1500 Regions Visited (12) 2400 Robots Destroyed (164) 820 Value Destroyed (4454) 4454 Prototype IDs (39) 780 Alien Tech Used (0) 0 Bonus (706) 706 TOTAL SCORE: 10660 Bonus ------- High Alert Combat Kills 406 Aligned with FarCom 300 Cogmind --------- Core Integrity 0/700 Matter 181/300 Energy 28/100 System Corruption 4% Temperature Cool (2) Movement Hovering (220) Ox2 Location -6/Proximity Caves Parts ------- > --- POWER (1) -------- (None) > --- PROPULSION (3) --- Combat Antigrav System > --- UTILITY (7) ------ High-capacity Storage Unit High-capacity Storage Unit Advanced Terrain Scan Processor Improved Target Analyzer Improved Armor Integrity Analyzer > --- WEAPON (2) ------- (None) > --- INVENTORY (20) --- Armored Treads Combat Antigrav System Combat Antigrav System High-capacity Storage Unit Makeshift Sensor Array Advanced Weapon Cycler Reactive Plating 8R-AWN's Armor/EX System Purifier Hacking Drone Bay AS-neutralizer No. 17b Precision Assault Rifle Shock Bomb Launcher Rocket Launcher Improved Grenade Launcher Molecular Deconstructor Makeshift Axe Peak State ------------ > --- POWER ------------ Reinforced Fission Core > --- PROPULSION ------- Combat Antigrav System Combat Antigrav System Combat Antigrav System > --- UTILITY ---------- Experimental Heat Sink High-capacity Storage Unit High-capacity Storage Unit Experimental Sensor Array Improved Target Analyzer Improved Armor Integrity Analyzer Hardened Light Armor Plating > --- WEAPON ----------- 8R-AWN's Boregun 8R-AWN's Boregun > --- INVENTORY -------- Armored Treads Combat Antigrav System Combat Antigrav System High-capacity Storage Unit Makeshift Terrain Scanner Advanced Terrain Scan Processor Advanced Weapon Cycler Reactive Plating 8R-AWN's Armor/EX System Purifier Hacking Drone Bay AS-neutralizer No. 17b Gauss Rifle Precision Assault Rifle Shock Bomb Launcher Rocket Launcher Improved Grenade Launcher Makeshift Axe [Rating: 87] Favorites ----------- Power Ion Engine Engine Ion Engine Power Core Reinforced Fission Core Propulsion Light Treads Treads Light Treads Leg Advanced Myomer Leg Hover Unit Combat Antigrav System Utility High-capacity Storage Unit Device Experimental Heat Sink Storage High-capacity Storage Unit Processor Improved Target Analyzer Hackware System Shield Protection Hardened Light Armor Plating Weapon Heavy Assault Rifle Energy Gun Small Laser Energy Cannon YOLO Cannon Ballistic Gun Heavy Assault Rifle Ballistic Cannon Slug Cannon Launcher Rocket Launcher Special Weapon Plasma Cutter Slashing Weapon Makeshift Axe Build | -11 -10 -10 -9 -9 -9 -8 -8 -7 -7 -7 -7 -6 ------- Run | Scr Mat Min Mat Min Exi Min Mat Fac Low Low Zio Pro Slots Evolved 6 | . . . 2 . . . 2 2 . . . . Power . | . . . . . . . . . . . . . Propulsion 1 | . . . . . . . . 1 . . . . Utility 5 | . . . 2 . . . 2 1 . . . . Weapon . | . . . . . . . . . . . . . Parts Attached 157 | . 20 13 31 2 26 2 20 20 7 1 10 5 Power 14 | . 3 1 3 1 2 . 1 2 . . 1 . Engine 10 | . 3 1 3 1 1 . . 1 . . . . Core 4 | . . . . . 1 . 1 1 . . 1 . Reactor . | . . . . . . . . . . . . . Propulsion 32 | . 7 2 9 1 5 . . 7 . . 1 . Treads 20 | . 4 2 9 1 3 . . 1 . . . . Leg 6 | . 3 . . . 2 . . 1 . . . . Wheel . | . . . . . . . . . . . . . Hover 6 | . . . . . . . . 5 . . 1 . Flight . | . . . . . . . . . . . . . Utility 60 | . 5 6 9 . 12 . 9 9 4 . 4 2 Device 18 | . 1 2 2 . 4 . 1 3 4 . . 1 Storage 8 | . 1 . 1 . 1 . 3 . . . 2 . Processor 3 | . . . . . . . 1 . . . 1 1 Hackware 1 | . . . . . . . . 1 . . . . Protection 30 | . 3 4 6 . 7 . 4 5 . . 1 . Artifact . | . . . . . . . . . . . . . Weapon 51 | . 5 4 10 . 7 2 10 2 3 1 4 3 Energy Gun 8 | . 4 . . . . . 2 1 1 . . . Energy Cannon 1 | . . . . . 1 . . . . . . . Ballistic Gun 30 | . 1 4 7 . 5 1 6 1 1 1 3 . Ballistic Cannon 1 | . . . 1 . . . . . . . . . Launcher 6 | . . . . . . 1 2 . 1 . . 2 Special Weapon 1 | . . . . . 1 . . . . . . . Impact Weapon . | . . . . . . . . . . . . . Slashing Weapon 4 | . . . 2 . . . . . . . 1 1 Piercing Weapon . | . . . . . . . . . . . . . Special Melee Weapon . | . . . . . . . . . . . . . Unidentified Prototypes 14 | . . 1 2 . 6 . 2 3 . . . . Parts Lost 47 | . 9 9 7 . 4 . 7 . . . 6 5 Power 5 | . 2 1 . . . . 1 . . . . 1 Propulsion 11 | . 2 2 3 . 2 . . . . . . 2 Utility 15 | . . 2 3 . 1 . 4 . . . 3 2 Weapon 16 | . 5 4 1 . 1 . 2 . . . 3 . Highest Loss Streak 6 | . 4 6 4 . 4 . 6 . . . 6 2 Average Slot Usage (%) 94 | . 93 98 96 100 88 88 89 97 95 100 99 73 Engine 8 | . 13 13 11 11 5 11 5 . 7 7 6 . Core 1 | . . . . . 5 . 3 6 . . . 5 Treads 14 | . 14 28 21 22 20 . . 5 . . . . Leg 3 | . 12 . . . 1 22 18 12 . . . . Hover 5 | . . . . . . . . 4 23 23 22 22 Device 6 | . 2 . 7 . . . 4 9 22 23 19 5 Storage 16 | . 14 14 19 22 12 11 16 23 15 15 17 15 Processor 2 | . . . . . . . 9 7 7 7 7 22 Protection 14 | . 9 13 14 22 21 22 16 8 7 7 7 . Energy Gun 3 | . 19 . . . . . 3 11 3 3 . . Ballistic Gun 15 | . 5 27 20 22 19 19 9 3 7 10 10 . Naked Turns . | . . . . . . . . . . . . . Heaviest Build 160 | 10 42 44 77 77 126 113 160 139 129 90 123 92 Greatest Support 90 | 20 40 40 40 40 60 60 60 90 90 90 90 90 Greatest Overweight (x) 4 | . 2 1 1 1 4 1 2 2 1 . 1 2 Average Overweight (x) . | . 1 . 1 1 2 1 1 1 . . . . Largest Inventory Capacity 40 | . 12 12 18 18 38 24 40 28 28 20 28 20 Average Capacity 18 | . 9 12 16 18 23 24 25 28 20 20 22 20 Most Carried 28 | . 12 12 18 18 24 24 28 28 20 20 22 19 Average Carried 17 | . 6 7 15 17 22 24 21 26 19 19 20 17 Final Capacity 28 | 6 12 12 18 18 24 24 28 28 20 20 20 20 Final Carried 28 | 6 12 9 18 18 24 24 28 20 19 20 18 19 Class Distribution -------------------- 34% | Hauler-Mutant 33% | Mutant 31% | Scavenger-Mutant Dominant Class ---------------- Mutant | -10/Materials Mutant | -10/Mines Scavenger-Mutant | -9/Materials Mutant | -9/Mines Scavenger-Mutant | -9/Exiles Hauler-Mutant | -8/Mines Hauler-Mutant | -8/Materials Scavenger-Mutant | -7/Factory Hauler-Mutant | -7/Lower Caves Hauler-Mutant | -7/Lower Caves Hauler-Mutant | -7/Zion Hauler-Mutant | -6/Proximity Caves Resources | -11 -10 -10 -9 -9 -9 -8 -8 -7 -7 -7 -7 -6 ----------- Run | Scr Mat Min Mat Min Exi Min Mat Fac Low Low Zio Pro Matter Collected 4422 | 200 272 194 1312 122 828 54 837 332 94 47 38 92 Remotely . | . . . . . . . . . . . . . Salvage Created 5873 | . 1078 216 1814 241 420 38 1188 539 108 47 . 184 Parts 401 | . 56 18 114 23 77 6 72 16 4 3 . 12 Haulers Intercepted 11 | . 2 . 5 . . . 3 1 . . . . Recyclers Shooed 10 | . 2 . 3 2 . . 2 1 . . . . Parts Field Recycled . | . . . . . . . . . . . . . Retrieved Matter . | . . . . . . . . . . . . . Parts Self-Destructed 18 | . . . . . . . . . 2 7 . 9 Prevented 3 | . . . . . . . . . 2 1 . . Kills | -11 -10 -10 -9 -9 -9 -8 -8 -7 -7 -7 -7 -6 ------- Run | Scr Mat Min Mat Min Exi Min Mat Fac Low Low Zio Pro Combat Hostiles Destroyed 118 | . 17 6 34 7 8 3 27 6 2 1 . 7 Melee 2 | . 1 . . . . . 1 . . . . . Guns 78 | . 16 6 31 7 . . 10 5 2 1 . . Cannons 6 | . . . 3 . 3 . . . . . . . AOE 31 | . . . . . 5 3 16 . . . . 7 Classes Destroyed 17 | . 8 1 2 . 3 . 2 1 . . . . Worker 6 | . 1 1 2 1 . . 1 . . . . . Builder 7 | . 2 . 4 1 . . . . . . . . Tunneler 4 | . . 1 1 1 . 1 . . . . . . Hauler 11 | . 2 . 5 . . . 3 1 . . . . Recycler 5 | . 2 . . . . . 1 2 . . . . Operator 4 | . 1 . 1 . . . 2 . . . . . Turret 1 | . . . . . 1 . . . . . . . Watcher 8 | . 3 . 4 . . . 1 . . . . . Swarmer 23 | . 3 3 3 4 . 3 3 . . . . 4 Grunt 59 | . 14 3 19 3 . . 15 2 . . . 3 Brawler 3 | . . . 2 . . . 1 . . . . . Protector 1 | . . . . . . . 1 . . . . . Sentry 18 | . . . 10 . . . 6 2 . . . . Hunter 4 | . . . . . . . 1 1 1 1 . . Programmer 2 | . . . . . . . . 1 1 . . . Zionite 5 | . . . . . 5 . . . . . . . Assembled 7 | . . . . . 7 . . . . . . . Best Kill Streak 8 | . 4 3 8 4 7 3 8 2 1 1 . 4 Combat Bots Only 8 | . 4 3 2 4 7 3 8 2 1 1 . 4 Max Kills in Single Turn 4 | . 2 1 2 2 3 2 3 1 1 1 . 4 Gunslinging 1 | . 1 . 1 1 . . . . . . . . Exploded 4 | . . . . . 3 2 3 . . . . 4 Melee 1 | . 1 . . . . . 1 . . . . . Uniques/NPCs Destroyed 4 | . . . . . 4 . . . . . . . 8R-AWN (-9/Exiles) EX-DEC (-9/Exiles) EX-HEX (-9/Exiles) EX-BIN (-9/Exiles) Combat | -11 -10 -10 -9 -9 -9 -8 -8 -7 -7 -7 -7 -6 -------- Run | Scr Mat Min Mat Min Exi Min Mat Fac Low Low Zio Pro Damage Taken 9443 | . 987 826 1763 135 978 . 1601 792 151 18 1128 1064 Core 1419 | . 93 63 210 9 70 . 263 96 . . 148 467 Absorbed by Shields . | . . . . . . . . . . . . . Core Remaining (%) 54 | 100 . 37 . . . 27 52 . . . . . Volleys Fired 535 | . 96 37 145 17 85 3 89 36 6 1 14 6 Largest 2 | . 2 2 2 2 2 2 2 2 2 2 2 1 Hottest 122 | . 80 80 68 46 100 53 122 122 73 73 60 36 Shots Fired 941 | . 171 67 288 34 159 4 110 70 12 2 18 6 Gun 860 | . 171 67 251 34 148 2 85 70 12 2 18 . Cannon 42 | . . . 37 . 5 . . . . . . . Launcher 33 | . . . . . . 2 25 . . . . 6 Special 6 | . . . . . 6 . . . . . . . Kinetic 714 | . 66 54 288 34 148 2 77 20 6 1 18 . Thermal 176 | . 105 13 . . 11 . 8 39 . . . . Explosive 33 | . . . . . . 2 25 . . . . 6 Electromagnetic 18 | . . . . . . . . 11 6 1 . . Robot Hit Streak 18 | . 17 7 18 9 16 4 10 9 12 4 7 4 Robot Miss Streak 5 | . 3 2 5 3 5 2 4 2 1 . 2 . Penetration Max 1 | . . . . . 1 . . . . . . . Secondary Targets 9 | . 1 . 3 3 . . 1 1 . . . . Max Gunslinging Chain 1 | . 1 . 1 1 . . 1 1 . . . . Shots Hit Robots 647 | . 122 42 209 22 100 1 72 53 10 2 10 4 Core Hits 299 | . 53 14 73 11 35 4 69 16 6 3 2 13 Critical Hits 46 | . . 1 5 . 21 . 16 2 1 . . . Critical Kills 9 | . . . . . 4 . 5 . . . . . Critical Parts Destroyed 29 | . . 1 5 . 12 . 8 2 1 . . . Melee Attacks 36 | . . . 10 . . . . . . . 25 1 Impact . | . . . . . . . . . . . . . Slashing 36 | . . . 10 . . . . . . . 25 1 Piercing . | . . . . . . . . . . . . . Sneak Attacks 3 | . . . 3 . . . . . . . . . Combat Hostiles . | . . . . . . . . . . . . . Follow-up Attacks . | . . . . . . . . . . . . . Damage Inflicted 13609 | . 1389 578 3784 375 2193 176 3161 990 233 36 197 497 Guns 8811 | . 1355 573 2727 371 1446 15 922 990 184 36 192 . Cannons 894 | . . . 664 . 230 . . . . . . . Explosions 3380 | . . . . . 450 161 2223 . 49 . . 497 Melee 393 | . . . 393 . . . . . . . . . Ramming 64 | . 34 5 . 4 . . 16 . . . 5 . Kinetic 7437 | . 451 438 3391 371 1446 15 790 237 94 12 192 . Thermal 2582 | . 904 135 . . 747 . 132 615 49 . . . Explosive 2881 | . . . . . . 161 2223 . . . . 497 Electromagnetic 252 | . . . . . . . . 138 90 24 . . Impact . | . . . . . . . . . . . . . Slashing 393 | . . . 393 . . . . . . . . . Piercing . | . . . . . . . . . . . . . Highest Corruption 4 | . 1 1 . . . . 4 3 2 . . 3 Average Corruption 1 | . 1 1 . . . . 4 2 1 . . 1 Corruption Purged 3 | . . . . . . . . 1 2 . . . Effects 28 | . 8 5 . . . . 6 6 3 . . . Message Errors 11 | . 4 3 . . . . 2 2 . . . . Matter Fused 2 | . . . . . . . 1 1 . . . . Heat Flow Errors 3 | . . . . . . . 1 . 2 . . . Energy Discharges 5 | . 1 1 . . . . 1 1 1 . . . Data Loss (minor) 2 | . 1 . . . . . . 1 . . . . Targeting Errors 3 | . 2 . . . . . . 1 . . . . Weapon Failures 2 | . . 1 . . . . 1 . . . . . Overload Shots . | . . . . . . . . . . . . . Overflow Damage 344 | . . . 232 . 56 . 56 . . . . . Projectiles 20 | . . . 20 . . . . . . . . . Explosions 112 | . . . . . 56 . 56 . . . . . Melee 212 | . . . 212 . . . . . . . . . Knockbacks 11 | . . . 11 . . . . . . . . . Impact . | . . . . . . . . . . . . . Kinetic 10 | . . . 10 . . . . . . . . . Secondary 1 | . . . 1 . . . . . . . . . Self-Inflicted Damage 95 | . 8 . . 32 . . 45 . . . 2 8 Shots 6 | . . . . 2 . . 3 . . . . 1 Rammed 17 | . 14 1 . . . . 1 . . . 1 . Targets Rammed 23 | . 18 1 . 1 . . 2 . . . 1 . Kicked 5 | . 4 . . . . . 1 . . . . . Crushed 1 | . . . . 1 . . . . . . . . Highest Temperature 453 | . 108 261 108 63 360 9 453 72 203 . . 23 Average Temperature 60 | . 31 124 30 26 86 5 75 33 110 . . 12 Received Heat Transfer 2673 | . 492 456 789 30 . . 621 258 . 9 . 18 Effects 3 | . . . . . . . 3 . . . . . Shutdowns 1 | . . . . . . . 1 . . . . . Interference 1 | . . . . . . . 1 . . . . . Damage (major) 1 | . . . . . . . 1 . . . . . Siege Activations . | . . . . . . . . . . . . . Robots Corrupted . | . . . . . . . . . . . . . Combat Hostiles . | . . . . . . . . . . . . . Parts Fried 2 | . . . . . . . . 2 . . . . Impact Corruptions . | . . . . . . . . . . . . . Robots Melted 1 | . . . . . . . . 1 . . . . Combat Hostiles 1 | . . . . . . . . 1 . . . . Parts Melted 12 | . 3 . . . . . . 9 . . . . Heat Transferred 4563 | . 2187 300 . . 694 . 222 1110 50 . . . Parts Sabotaged . | . . . . . . . . . . . . . Parts Stolen . | . . . . . . . . . . . . . Parts Stripped . | . . . . . . . . . . . . . Power Chain Reactions 1 | . . . . . . . . . 1 . . . Missiles Intercepted . | . . . . . . . . . . . . . Alert | -11 -10 -10 -9 -9 -9 -8 -8 -7 -7 -7 -7 -6 ------- Run | Scr Mat Min Mat Min Exi Min Mat Fac Low Low Zio Pro Peak Influence 837 | . 241 70 644 460 . 91 837 785 . . . . Initial 312 | . . 18 7 240 . . 35 312 . . . . Average 257 | . 83 29 355 273 . 21 499 430 . . . . Maximum Alert Level 3 | . 1 . 2 2 . . 3 3 . . . . Low Security (%) 45 | . 90 100 15 38 . 100 14 . . . . . Level 1 28 | . 9 . 49 37 . . 13 36 . . . . Level 2 23 | . . . 34 23 . . 50 62 . . . . Level 3 2 | . . . . . . . 21 . . . . . Level 4 . | . . . . . . . . . . . . . Level 5 . | . . . . . . . . . . . . . High Security . | . . . . . . . . . . . . . Max Security . | . . . . . . . . . . . . . Squads Dispatched 22 | . 7 . 7 . . . 7 1 . . . . Investigation 6 | . 4 . 2 . . . . . . . . . Extermination . | . . . . . . . . . . . . . Reinforcement 10 | . 3 . 5 . . . 1 1 . . . . Assault 3 | . . . . . . . 3 . . . . . Garrison 3 | . . . . . . . 3 . . . . . Intercept . | . . . . . . . . . . . . . Construction Impeded . | . . . . . . . . . . . . . Haulers Reinforced 1 | . . . . . . . . 1 . . . . Stealth | -11 -10 -10 -9 -9 -9 -8 -8 -7 -7 -7 -7 -6 --------- Run | Scr Mat Min Mat Min Exi Min Mat Fac Low Low Zio Pro Distress Signals 8 | . 2 . 3 1 . . 2 . . . . . Communications Jammed . | . . . . . . . . . . . . . Distress Signals . | . . . . . . . . . . . . . Times Spotted 208 | . 34 8 56 8 35 3 35 10 2 3 2 12 Peak Tracking Total 9 | . 4 3 6 4 9 3 8 3 1 4 1 6 Tactical Retreats 34 | . . 2 8 . 17 . 4 . . 1 1 1 Traps | -11 -10 -10 -9 -9 -9 -8 -8 -7 -7 -7 -7 -6 ------- Run | Scr Mat Min Mat Min Exi Min Mat Fac Low Low Zio Pro Traps Triggered . | . . . . . . . . . . . . . Indirectly . | . . . . . . . . . . . . . Trap Hack Attempts . | . . . . . . . . . . . . . Triggered . | . . . . . . . . . . . . . Disarmed . | . . . . . . . . . . . . . Reprogrammed . | . . . . . . . . . . . . . Reused . | . . . . . . . . . . . . . Traps Extracted . | . . . . . . . . . . . . . Installed . | . . . . . . . . . . . . . Triggered . | . . . . . . . . . . . . . Machines | -11 -10 -10 -9 -9 -9 -8 -8 -7 -7 -7 -7 -6 ---------- Run | Scr Mat Min Mat Min Exi Min Mat Fac Low Low Zio Pro Machines Disabled 30 | . . . . 3 19 . 6 . . . 1 1 Max in Single Turn 3 | . . . . 3 2 . 3 . . . 1 1 Machines Sabotaged . | . . . . . . . . . . . . . Garrisons Compromised . | . . . . . . . . . . . . . Overloaded Fab Kills . | . . . . . . . . . . . . . Fab Network Shutdowns 1 | . . . . . . . . 1 . . . . Hacking | -11 -10 -10 -9 -9 -9 -8 -8 -7 -7 -7 -7 -6 --------- Run | Scr Mat Min Mat Min Exi Min Mat Fac Low Low Zio Pro Machines Accessed 30 | . 7 . 11 . 2 . 6 2 1 . 1 . Terminals 14 | . 4 . 6 . . . 3 1 . . . . Fabricators 1 | . . . . . . . . 1 . . . . Repair Stations 4 | . 1 . 2 . . . 1 . . . . . Recycling Units 4 | . 2 . 2 . . . . . . . . . Scanalyzers 3 | . . . 1 . . . 2 . . . . . Garrison Access . | . . . . . . . . . . . . . Total Hacks 74 | . 14 . 29 . 2 . 19 5 1 . 4 . Successful 52 | . 7 . 22 . 2 . 11 5 1 . 4 . Failed 22 | . 7 . 7 . . . 8 . . . . . Catastrophic . | . . . . . . . . . . . . . Database Lockouts . | . . . . . . . . . . . . . Manual 37 | . 12 . 17 . 1 . 6 . . . . 1 Terminals 31 | . 9 . 15 . . . 6 1 . . . . Fabricators 4 | . . . . . . . . 4 . . . . Repair Stations 14 | . 3 . 8 . . . 3 . . . . . Recycling Units 4 | . 2 . 2 . . . . . . . . . Scanalyzers 14 | . . . 4 . . . 10 . . . . . Garrison Access . | . . . . . . . . . . . . . Terminal Hacks 17 | . 2 . 6 . 2 . 1 1 1 . 4 . Record 1 | . . . . . 1 . . . . . . . Part Schematic 4 | . . . . . . . . . . . 4 . Robot Analysis 3 | . 2 . 1 . . . . . . . . . Open Door 1 | . . . . . . . . . 1 . . . Branch Access Points 3 | . . . 2 . . . . 1 . . . . Scanalyzer Index 1 | . . . . . . . 1 . . . . . Locate Traps 2 | . . . 2 . . . . . . . . . Hauler Manifests 1 | . . . 1 . . . . . . . . . EX-Prototype ID Bank 1 | . . . . . 1 . . . . . . . Fabricator Hacks 4 | . . . . . . . . 4 . . . . Network Status 1 | . . . . . . . . 1 . . . . Load Schematic 1 | . . . . . . . . 1 . . . . Build 2 | . . . . . . . . 2 . . . . Repair Station Hacks 9 | . 1 . 6 . . . 2 . . . . . Scan Component 5 | . 1 . 3 . . . 1 . . . . . Repair 4 | . . . 3 . . . 1 . . . . . Recycling Unit Hacks . | . . . . . . . . . . . . . Scanalyzer 9 | . . . 4 . . . 5 . . . . . Insert Component 6 | . . . 2 . . . 4 . . . . . Analyze 3 | . . . 2 . . . 1 . . . . . Garrison Access Hacks . | . . . . . . . . . . . . . Unauthorized Hacks 13 | . 4 . 6 . . . 3 . . . . . Terminals 9 | . 2 . 4 . . . 3 . . . . . Track 8 | . 2 . 4 . . . 2 . . . . . Botnet 1 | . . . . . . . 1 . . . . . Fabricators . | . . . . . . . . . . . . . Repair Stations . | . . . . . . . . . . . . . Recycling Units 4 | . 2 . 2 . . . . . . . . . Tunnel 4 | . 2 . 2 . . . . . . . . . Scanalyzers . | . . . . . . . . . . . . . Garrison Access . | . . . . . . . . . . . . . Data Cores Recovered . | . . . . . . . . . . . . . Used . | . . . . . . . . . . . . . Hacking Detections 15 | . 5 . 3 . . . 5 2 . . . . Full Trace Events 3 | . 3 . . . . . . . . . . . Feedback Events . | . . . . . . . . . . . . . Feedback Blocked . | . . . . . . . . . . . . . Robot Schematics Acquired . | . . . . . . . . . . . . . Robots Built . | . . . . . . . . . . . . . Matter . | . . . . . . . . . . . . . Time . | . . . . . . . . . . . . . Total Robot Build Rating . | . . . . . . . . . . . . . Part Schematics Acquired 7 | . . . 2 . . . 1 . . . 4 . Parts Built 4 | . . . . . . . . 4 . . . . Matter 512 | . . . . . . . . 512 . . . . Time 128 | . . . . . . . . 128 . . . . Total Part Build Rating 32 | . . . . . . . . 32 . . . . Parts Repaired 4 | . . . 3 . . . 1 . . . . . Time 152 | . . . 84 . . . 68 . . . . . Parts Recycled . | . . . . . . . . . . . . . Recycled Matter . | . . . . . . . . . . . . . Retrieved Matter . | . . . . . . . . . . . . . Retrieved Components . | . . . . . . . . . . . . . Parts Scanalyzed 4 | . . . 2 . . . 2 . . . . . Part Schematics Acquired 3 | . . . 2 . . . 1 . . . . . Parts Damaged 1 | . . . . . . . 1 . . . . . Bothacking | -11 -10 -10 -9 -9 -9 -8 -8 -7 -7 -7 -7 -6 ------------ Run | Scr Mat Min Mat Min Exi Min Mat Fac Low Low Zio Pro Used RIF Installer . | . . . . . . . . . . . . . Robots Hacked . | . . . . . . . . . . . . . Non-combat . | . . . . . . . . . . . . . Combat . | . . . . . . . . . . . . . Robot Hacks Applied . | . . . . . . . . . . . . . Relay Couplers Released . | . . . . . . . . . . . . . Robots Rewired . | . . . . . . . . . . . . . Allies Hacked . | . . . . . . . . . . . . . Hacks Repelled . | . . . . . . . . . . . . . Allies | -11 -10 -10 -9 -9 -9 -8 -8 -7 -7 -7 -7 -6 -------- Run | Scr Mat Min Mat Min Exi Min Mat Fac Low Low Zio Pro Total Allies 1 | . . . . 1 . . . . . . . . Largest Group 1 | . . . . 1 . . . . . . . . Highest-Rated Group 31 | . . . . 31 . . . . . . . . Highest-Rated Ally 31 | . . . . 31 . . . . . . . . Total Orders . | . . . . . . . . . . . . . Ally Attacks . | . . . . . . . . . . . . . Total Damage . | . . . . . . . . . . . . . Kills . | . . . . . . . . . . . . . Allies Corrupted . | . . . . . . . . . . . . . Allies Melted . | . . . . . . . . . . . . . Intel | -11 -10 -10 -9 -9 -9 -8 -8 -7 -7 -7 -7 -6 ------- Run | Scr Mat Min Mat Min Exi Min Mat Fac Low Low Zio Pro Robot Analysis Total 3 | . 2 . 1 . . . . . . . . . Derelict Logs Recovered 8 | . . 3 . 1 . . . . 1 1 2 . Drone Launches . | . . . . . . . . . . . . . Drone Recoveries . | . . . . . . . . . . . . . Exploration | -11 -10 -10 -9 -9 -9 -8 -8 -7 -7 -7 -7 -6 ------------- Run | Scr Mat Min Mat Min Exi Min Mat Fac Low Low Zio Pro Turns Passed 14723 | . 1817 1107 3222 1308 2411 266 845 496 732 496 1766 257 Spaces Moved 8350 | 1 847 543 1414 692 988 170 361 172 401 603 1872 286 Core . | . . . . . . . . . . . . . Treads 3953 | . 414 543 1414 692 890 . . . . . . . Legs 1200 | 1 433 . . . 98 170 361 137 . . . . Wheels . | . . . . . . . . . . . . . Hover 3197 | . . . . . . . . 35 401 603 1872 286 Flight . | . . . . . . . . . . . . . Fastest Speed 72 | 120 120 160 180 180 150 150 150 142 72 72 72 72 Average Speed 142 | 120 168 179 180 180 203 150 150 150 74 72 88 82 Slowest Speed 240 | 120 180 180 180 180 240 150 180 180 142 72 142 220 Overloaded Moves . | . . . . . . . . . . . . . Propulsion Burnouts . | . . . . . . . . . . . . . Robots Hopped . | . . . . . . . . . . . . . Cave-ins Triggered . | . . . . . . . . . . . . . Exploration Rate (%) 63 | 2 98 95 93 98 90 43 45 7 57 62 81 53 Regions Visited 12 Branch Regions 8 Pre-discovered Areas 9 | . 2 . 2 1 1 . . . . . 3 . Known Exits Taken 5 | . . 1 1 . . 1 . 1 1 . . . Unknown Exits Taken 7 | 1 1 . . 1 1 . 1 . . 1 1 . Scrap Searched 14 | . . 1 . 3 . 1 . . 1 4 3 1 Spaces Dug 4 | . . . 4 . . . . . . . . . Terrain Destroyed 341 | . . . 12 18 48 25 170 . 4 . 2 62 Melee 4 | . . . 4 . . . . . . . . . Projectile 38 | . . . 8 . 11 2 15 . . . 2 . AOE 299 | . . . . 18 37 23 155 . 4 . . 62 Terrain Rammed . | . . . . . . . . . . . . . Walls Destroyed . | . . . . . . . . . . . . . Machines Disabled . | . . . . . . . . . . . . . Actions | -11 -10 -10 -9 -9 -9 -8 -8 -7 -7 -7 -7 -6 --------- Run | Scr Mat Min Mat Min Exi Min Mat Fac Low Low Zio Pro Total 10229 | . 1068 605 1804 727 1220 176 553 345 826 665 1936 304 Wait 858 | . 46 6 137 3 59 2 60 89 403 51 1 1 Move 8339 | . 846 542 1413 691 987 169 360 171 400 602 1872 286 Hop . | . . . . . . . . . . . . . Pick Up 148 | . 26 6 38 6 30 . 15 10 2 6 7 2 Fast Attach 26 | . 3 . 6 . 8 . 3 1 1 1 3 . Attach 72 | . 12 9 9 . 10 . 10 10 3 . 4 5 Detach 11 | . . . . . 2 . 2 2 2 . . 3 Swap 59 | . 5 4 16 2 8 2 7 9 3 . 3 . Drop 123 | . 16 . 30 7 31 . 5 17 6 4 7 . Fire 535 | . 96 37 145 17 85 3 89 36 6 1 14 6 Melee 36 | . . . 10 . . . . . . . 25 1 Ram . | . . . . . . . . . . . . . Kick 19 | . 17 . . . . . 2 . . . . . Crush 3 | . 1 1 . 1 . . . . . . . . Escape Stasis . | . . . . . . . . . . . . . Rewire . | . . . . . . . . . . . . . Trap . | . . . . . . . . . . . . . Miscellaneous . | . . . . . . . . . . . . . Route ------- -11/Scrapyard -10/Materials (discovered 5 exits: *Mat x3 / [*Min x2]) -10/Mines (discovered 2 exits: *Mat x2) -9/Materials (discovered 5 exits: *Mat x3 / *Min x2) -9/Mines (discovered 4 exits: *Mat x2 / *Exi / *Zio) -9/Exiles -8/Mines -8/Materials -7/Factory (discovered 4 exits: Sto x2 / *Low x2) -7/Lower Caves -7/Lower Caves -7/Zion -6/Proximity Caves History --------- Turn | Location | Event 1 | -11/Scrapyard | Discovered new exit (range 0) 1 | -11/Scrapyard | Entered Materials 17 | -10/Materials | Discovered new exit (range 13) 315 | -10/Materials | Build established: Mutant 321 | -10/Materials | Discovered new exit (range 16) 631 | -10/Materials | Discovered new exit (range 10) 781 | -10/Materials | Lost 4 parts (2n2w) 916 | -10/Materials | Discovered new exit (range 15) 1057 | -10/Materials | Discovered new exit (range 4) 1084 | -10/Materials | Build established: Scavenger-Mutant 1818 | -10/Materials | Entered Mines 1845 | -10/Mines | Core integrity fell below 50% 1871 | -10/Mines | Lost 3 parts (1u2w) 1872 | -10/Mines | Build established: Mutant 1984 | -10/Mines | A weapon hastily lodged in a ceiling crevice suddenly fell to the ground 2114 | -10/Mines | Lost 6 parts (1p2n1u2w) 2134 | -10/Mines | Learned location of 1 exit from Materials 2192 | -10/Mines | Discovered new exit (range 11) 2285 | -10/Mines | Identified exit to Materials 2466 | -10/Mines | Found a damaged Exp. Sensor Array with a note attached 2470 | -10/Mines | Found Prototype Device 2471 | -10/Mines | Identified Exp. Sensor Array 2849 | -10/Mines | Learned 4 Materials zone layouts 2925 | -10/Mines | Entered Materials 2925 | -9/Materials | Evolved 2 slots: Utility x2 2926 | -9/Materials | Identified exit to Mines 2927 | -9/Materials | Identified exit to Materials 3048 | -9/Materials | Repaired Lgt. Treads 3344 | -9/Materials | Lost 4 parts (1n2u1w) 3358 | -9/Materials | Discovered exit to Materials (range 11) 4112 | -9/Materials | Build established: Scavenger-Mutant 4498 | -9/Materials | Repaired Lgt. Treads 4531 | -9/Materials | Repaired Hrd. Light Armor Plating 5244 | -9/Materials | Core integrity fell below 50% 5960 | -9/Materials | Build established: Mutant 6147 | -9/Materials | Entered Mines 6150 | -9/Mines | Met a Derelict bent on vengeance 6238 | -9/Mines | Discovered exit to Materials (range 10) 6284 | -9/Mines | Joined a pair of Derelicts in attacking an 0b10 outpost 6465 | -9/Mines | A Derelict revealed a hidden shortcut to a safe place 6529 | -9/Mines | Deemed a non-threat by the Exiles lab entrance 6529 | -9/Mines | Discovered new exit (range 5) 6643 | -9/Mines | Received a Mining Laser from a helpful Derelict 6741 | -9/Mines | Discovered exit to Materials (range 11) 7455 | -9/Mines | Entered Exiles 7499 | -9/Exiles | Met 8R-AWN 7638 | -9/Exiles | Met EX-HEX 7708 | -9/Exiles | Met EX-DEC 7722 | -9/Exiles | Learned location of Zion (-7) 7995 | -9/Exiles | Met EX-BIN 8019 | -9/Exiles | Aligned with FarCom system 8021 | -9/Exiles | Given EX-Vault access code 8067 | -9/Exiles | Opened EX-Vault 8072 | -9/Exiles | Build established: Hauler-Mutant 8079 | -9/Exiles | Found YOLO Cannon 8120 | -9/Exiles | Warned to stay clear of 0b10 Research branches 8327 | -9/Exiles | Attacked by the Exiles 8387 | -9/Exiles | Destroyed 7 combat bots 8511 | -9/Exiles | Lost 4 parts (2n1u1w) 8542 | -9/Exiles | Destroyed 8R-AWN 8577 | -9/Exiles | Found Prototype Protection 8580 | -9/Exiles | Found Prototype Device 8586 | -9/Exiles | Found Prototype Processor 8598 | -9/Exiles | Found Prototype Ballistic Gun 8603 | -9/Exiles | Found Prototype Ballistic Gun 8603 | -9/Exiles | Identified 8R-AWN's Boregun (x2) 8902 | -9/Exiles | Destroyed EX-DEC 8910 | -9/Exiles | Build established: Scavenger-Mutant 8943 | -9/Exiles | Destroyed EX-HEX 9028 | -9/Exiles | Destroyed EX-BIN 9035 | -9/Exiles | Found Prototype Device 9687 | -9/Exiles | Identified AS-neutralizer No. 17b 9688 | -9/Exiles | Identified System Purifier 9850 | -9/Exiles | Discovered new exit (range 10) 9866 | -9/Exiles | Entered Mines 10109 | -8/Mines | Discovered exit to Materials (range 15) 10132 | -8/Mines | Entered Materials 10132 | -8/Materials | Evolved 2 slots: Utility x2 10173 | -8/Materials | Build established: Hauler-Mutant 10532 | -8/Materials | First assault squad dispatched 10545 | -8/Materials | Garrison activated, responded to threat 10564 | -8/Materials | Repaired Cmb. Antigrav System? 10604 | -8/Materials | Destroyed 8 combat bots 10658 | -8/Materials | Lost 6 parts (1p3u2w) 10889 | -8/Materials | Identified Exp. Targeting Computer 10954 | -8/Materials | Discovered new exit (range 15) 10977 | -8/Materials | Entered Factory 10977 | -7/Factory | Evolved 2 slots: Propulsion x1, Utility x1 11008 | -7/Factory | Identified exit to Storage 11008 | -7/Factory | Identified exit to Lower Caves 11302 | -7/Factory | Fabricated Cmb. Antigrav System (x2) 11341 | -7/Factory | Build established: Scavenger-Mutant 11366 | -7/Factory | Fabricated Cmb. Antigrav System (x2) 11470 | -7/Factory | Local fabrication network quarantined 11473 | -7/Factory | Entered Lower Caves 11530 | -7/Lower Caves | Found Prototype Device 11683 | -7/Lower Caves | Build established: Hauler-Mutant 12186 | -7/Lower Caves | Identified exit to Lower Caves 12205 | -7/Lower Caves | Entered another Lower Caves area 12218 | -7/Lower Caves | Encountered a Warlord checkpoint 12225 | -7/Lower Caves | Learned 8 Factory zone layouts 12683 | -7/Lower Caves | Discovered new exit (range 7) 12701 | -7/Lower Caves | Entered Zion 12758 | -7/Zion | Given A8's code to call for help 12797 | -7/Zion | Discovered new exit (range 16) 12854 | -7/Zion | Learned location of Warlord (-5) 12892 | -7/Zion | Given the Hacking Drone Bay 13778 | -7/Zion | Found Prototype Device 14404 | -7/Zion | Attacked by Zionites 14454 | -7/Zion | 1C-UTU came to Zion's defense 14467 | -7/Zion | Entered Proximity Caves 14495 | -6/Proximity Caves | Attracted the attention of an 0b10 checkpoint 14495 | -6/Proximity Caves | Lost 6 parts (3u3w) 14583 | -6/Proximity Caves | Acquired the password to a Derelict Tinkerer's latest research 14589 | -6/Proximity Caves | Found Prototype Special Weapon 14639 | -6/Proximity Caves | Caught by Unaware searching for contraband prototypes 14644 | -6/Proximity Caves | Core integrity fell below 50% 14707 | -6/Proximity Caves | Core integrity fell below 20% 14724 | -6/Proximity Caves | Destroyed by H-66 Slayer with Gauss Rifle Last Messages --------------- 14639_ P-70 Sage: "CONFIRMED SUSPICIOUS DERELICT. COMMENCE PROTOTYPE CONTRABAND SEARCH." 14640_ Lgt. Nuclear Core fries itself beyond repair. 14640_ Slug penetrates Earth. 14643_ Slug penetrates Wall. 14646_ VTOL Module fries itself beyond repair. 14648_ Slug penetrates Earth. 14654_ Slug penetrates Wall. 14656_ H-66 Slayer suffers critical hit. 14656_ Slug penetrates Earth. 14661_ Acquired 11 matter. 14663_ The unstable cave ceiling collapses. 14667_ Slug penetrates Wall. 14670_ Rnf. Fission Core destroyed. 14719_ Cmb. Antigrav System destroyed. 14721_ Penetrated by Slug. 14723_ Slug penetrates Wall. 14723_ Penetrated by Slug. 14723_ Cmb. Antigrav System destroyed. 14724_ Penetrated by Slug. Map ----- +----------------------------------------------------+ | ???????## # ### # #????????????????????? | | ???????# ## ### #????????????????????? | | ???????## ## ## ##??###??????????????? | | #???????# ## ### #??????????????? | | #??###### ## """ # #??????????????? | | #??# ## ## """""" #???????????????? | | ##?# ## % ## """ """ ##???????????????? | | ### % """ ##????????????????? | | ## """ """ ###?????????????????? | | ### # ## """""" #???????????????????? | | ## ##### """ #???????????????????? | | ### #???## ######???????????????????? | | # #?###???## ##????????????????????????? | | ## # #??????## #?????????? ??????????????? | | ?# ####??????# #????????? #?????????????? | | ?# #??????#### ### #???????? ??????????????? | | ?# #??????# ##??# #?????? ???????????????? | | ?# #?##???## #?#### #???? #???????????????? | | ?# #? ##???### #### #####??? ##??????????????? | | ## ## ####??###### #?????? #??????????????? | | ## # #??????# #????? #???????????????? | | #???????# #???? #????????????????? | | #####??### ##?? #?????????????????? | | ## #### #### ### ##????????????????? | | ?## ##??# ##h ##???????????????? | | ??# #???# p @ ????????? | | ??# #???# ## hh ????????? | | ?## ##??# ####### ######## ####???????????? | | ## #### #?????#####??????????#??????????????? | | #???????????????????????????????????? | | #???????????????????????????????????? | | ## ######???????????????????????????????????? | | ?## #????????????????????????????????????????? | | ??# ##????????????????????????????????????????? | | #??###?????????????????????????????????????????? | | ???????????????????????????????????????????????? | | ???????????????????????????????????????????????? | | ##???????????????????????????????????????????????? | | ?????????????????????????????????????????????????? | | ?????????????????????????????????????????????????? | | ?????????????????????????????????????????????????? | | ?????????????????????????????????????????????????? | | ?????????????????????????????????????????????????? | | ?????????????????????????????????????????????????? | | ?????????????????????????????????????????????????? | | ?????????????????????????????????????????????????? | | ?????????????????????????????????????????????????? | | ?????????????????????????????????????????????????? | | ?????????????????????????????????????????????????? | | ?????????????????????????????????????????????????? | +----------------------------------------------------+ Best States ------------- Heat Dissipation 60 Energy Generation 19 Energy Capacity 310 Matter Stores 300 Matter Capacity 300 Sight Range 16 Robot Scan Range 30 Terrain Scan Range 20 Terrain Scan Density 210 Armor Coverage 375 Resistance: KI 30 Weapon Cycling 25 Evasion (%) 50 Target Analysis 6 Armor Integrity Analysis 50 Recoil Reduction 2 Defensive Hacking 10 Item Schematics ----------------- Slug Cannon | -9/Materials | Scanalyzed Exp. Sensor Array | -9/Materials | Scanalyzed Cmb. Antigrav System | -8/Materials | Scanalyzed Riot Gun | -7/Zion | Free Barrage Gun | -7/Zion | Free Battle Cannon | -7/Zion | Free Flamer | -7/Zion | Free Robot Schematics ------------------ None Fabricated ------------ Cmb. Antigrav System | x2 | -7/Factory Cmb. Antigrav System | x2 | -7/Factory Alien Tech Used ----------------- None Achievements -------------- None Challenges ------------ None Game ------ Seed AntigravBladeBiocell Manual? 0 Play Time 01:20:38 Cumulative 240.2 hours Start 2021.01.10 @ 13:35:24 End 2021.01.10 @ 15:02:49 Sessions 1 Manual Loads 0 Difficulty Rogue Special Mode None Game No. 216 Rogue 209 Adventurer 0 Explorer 7 Win Type - Total 5 Types 1/0/4/0/0/0/0/0/0 Lore% 72 Gallery% 91 Achievement% 69 Wizard Run 0 Options --------- ASCII 0 Keyboard 0 Movement Numpad Keybinds 0 Fullscreen 1 Font 18/X11 Map View 76x50 Tactical HUD 1 Map Filters NONE Filters NONE Steam 1 RUN: 493a4d78-a4e1-471f-a84b-e56b8f874b8b